fUST/lending_fUST_20251114
["ID","MTS","AMOUNT","RATE_DAILY","PERIOD"]
[393922808,1763097034509,-447.9450823,0.00028933,2]
[393922809,1763097034518,-426.81433179,0.00028933,2]
[393922810,1763097034527,-319.10490421,0.00028933,2]
[393922811,1763097034536,-468.03180287,0.00028933,2]
[393922812,1763097034546,-229.41506516,0.00028933,2]
[393922813,1763097034556,-152.55749378,0.00028933,2]
[393922814,1763097034566,-315.55754117,0.00028933,2]
[393922815,1763097034580,-495.57873298,0.00028933,2]
[393922816,1763097034590,-162.18621314,0.00028933,2]
[393922817,1763097034599,-412.94711728,0.00028933,2]
[393922818,1763097034610,-733.39408029,0.00028933,2]
[393922819,1763097034620,-500.0,0.00028943,7]
[393922820,1763097034630,-500.0,0.00028943,7]
[393922821,1763097034639,-500.0,0.00028943,7]
[393922822,1763097034649,-500.0,0.00028943,7]
[393922823,1763097034659,-500.0,0.00028943,7]
[393922824,1763097034669,-234.96692386,0.00028943,7]
[393922825,1763097034679,-500.0,0.0002897,2]
[393922826,1763097034689,-500.0,0.0002897,7]
[393922827,1763097034699,-500.0,0.0002897,7]
[393922828,1763097034707,-500.0,0.0002897,7]
[393922829,1763097034718,-500.0,0.0002897,7]
[393922830,1763097034728,-500.0,0.0002897,7]
[393922831,1763097034738,-224.91690987,0.00028973,5]
[393922832,1763097034747,-500.0,0.00028973,5]
[393922833,1763097034757,-503.39710004,0.00028973,5]
[393922834,1763097034767,-673.0,0.00028975,2]
[393922835,1763097034777,-892.04171937,0.00028981,2]
[393922836,1763097034787,-202.56121097,0.00028989,10]
[393922837,1763097034796,-500.0,0.00028998,7]
[393922838,1763097034806,-500.0,0.00028998,7]
[393922839,1763097034816,-500.0,0.00028998,7]
[393922840,1763097034830,-371.93457098,0.00028998,7]
[393922841,1763097034840,-500.0,0.00028998,7]
[393922842,1763097034849,-568.00357411,0.00029021,2]
[393922843,1763097034859,-317.18859542,0.00029021,2]
[393922844,1763097034868,-500.0,0.00029025,7]
[393922845,1763097034879,-500.0,0.00029025,7]
[393922846,1763097034888,-500.0,0.00029025,7]
[393922847,1763097034898,-500.0,0.00029025,7]
[393922848,1763097034909,-609.9099911,0.00029053,7]
[393922849,1763097034920,-500.0,0.00029053,7]
[393922850,1763097034930,-500.0,0.00029053,7]
[393922851,1763097034940,-252.317,0.0002906,21]
[393922852,1763097034950,-500.0,0.00029079,2]
[393922853,1763097034959,-500.0,0.0002908,7]
[393922854,1763097034969,-500.0,0.0002908,7]
[393922855,1763097034978,-168.0,0.00029093,7]
[393922856,1763097034987,-252.09,0.000291,7]
[393922857,1763097034997,-168.0,0.00029104,7]
[393922858,1763097035006,-500.0,0.00029107,7]
[393922859,1763097035016,-478.89829743,0.00029107,7]
[393922860,1763097035025,-168.0,0.00029126,2]
[393922861,1763097035035,-500.0,0.00029135,7]
[393922862,1763097035044,-500.0,0.00029162,7]
[393922863,1763097035054,-500.0,0.0002919,7]
[393922864,1763097035064,-1153.0,0.00029194,7]
[393922865,1763097035074,-192.0,0.00029207,2]
[393922866,1763097035084,-500.0,0.00029217,7]
[393922867,1763097035093,-518.34907665,0.00029221,5]
[393922868,1763097035103,-500.0,0.00029244,7]
[393922869,1763097035112,-204.0,0.00029252,2]
[393922870,1763097035122,-500.0,0.00029272,7]
[393922871,1763097035131,-150.0,0.00029272,2]
[393922872,1763097035141,-2253.0221131,0.00029275,5]
[393922873,1763097035150,-500.0,0.00029299,7]
[393922874,1763097035159,-154.91613,0.0002931,7]
[393922875,1763097035168,-281.881846,0.0002931,7]
[393922876,1763097035177,-151.0,0.0002931,7]
[393922877,1763097035187,-156.562127,0.0002931,7]
[393922878,1763097035196,-151.0,0.0002931,7]
[393922879,1763097035206,-151.0,0.0002931,7]
[393922880,1763097035216,-151.0,0.0002931,7]
[393922881,1763097035225,-151.432545,0.0002931,7]
[393922882,1763097035235,-151.0,0.0002931,7]
[393922883,1763097035245,-6142.97085556,0.00029311,2]
[393922884,1763097035254,-279.85622568,0.00029313,6]
[393922885,1763097035265,-1000.0,0.00029321,5]
[393922886,1763097035274,-1000.0,0.00029321,5]
[393922887,1763097035283,-1119.42490273,0.00029323,6]
[393922888,1763097035292,-150.0,0.00029324,5]
[393922889,1763097035302,-507.19978494,0.00029324,5]
[393922890,1763097035311,-500.0,0.00029324,5]
[393922891,1763097035320,-158.47400105,0.00029324,5]
[393922892,1763097035331,-532.66186175,0.00029324,5]
[393922893,1763097035339,-188.85066614,0.00029324,5]
[393922894,1763097035348,-504.83884633,0.00029324,5]
[393922895,1763097035357,-500.0,0.00029324,5]
[393922896,1763097035365,-510.66472727,0.00029324,5]
[393922897,1763097035374,-500.0,0.00029324,5]
[393922898,1763097035383,-189.32947227,0.00029327,7]
[393922899,1763097035391,-201.01693298,0.00029343,6]
[393922900,1763097035400,-460.0,0.00029344,2]
[393922901,1763097035409,-192.0,0.00029358,7]
[393922902,1763097035418,-487.99187316,0.0002946,2]
[393922903,1763097035427,-570.93947176,0.00029492,2]
[393922904,1763097035435,-1584.26609359,0.00029495,2]
[393922905,1763097035444,-168.0,0.00029513,7]
[393922906,1763097035453,-412.72695902,0.00029514,2]
[393922907,1763097035462,-500.0,0.0002952,2]
[393922908,1763097035471,-273.21188423,0.00029521,5]
[393922909,1763097035479,-168.0,0.00029629,2]
[393922910,1763097035488,-168.0,0.00029644,7]
[393922911,1763097035497,-274.32888531,0.0002968,2]
[393922912,1763097035506,-291.93518365,0.00029707,2]
[393922913,1763097035516,-1013.6468503,0.00029868,5]
[393922914,1763097035525,-482.60926113,0.00029868,5]
[393922915,1763097035534,-250.0,0.00029872,5]
[393922916,1763097035543,-504.96432664,0.00029872,5]
[393922917,1763097035552,-1000.0,0.00029872,5]
[393922918,1763097035561,-1012.00422564,0.00029872,5]
[393922919,1763097035570,-1008.77434762,0.00029885,2]
[393922920,1763097035582,-560.0,0.00029892,2]
[393922921,1763097035592,-1000.0,0.000299,7]
[393922922,1763097035602,-1416.73661773,0.00029901,2]
[393922923,1763097035611,-416.19525279,0.00029918,6]
[393922924,1763097035621,-457.93754299,0.00029922,6]
[393922925,1763097035631,-500.0,0.00029961,2]
[393922926,1763097035640,-151.0,0.00029962,7]
[393922927,1763097035650,-151.0,0.00029962,7]
[393922928,1763097035660,-151.0,0.00029962,7]
[393922929,1763097035669,-151.0,0.00029962,7]
[393922930,1763097035678,-151.0,0.00029962,7]
[393922931,1763097035688,-151.0,0.00029962,7]
[393922932,1763097035698,-151.0,0.00029962,7]
[393922933,1763097035707,-151.0,0.00029962,7]
[393922934,1763097035717,-1015.00350534,0.00029964,2]
[393922935,1763097035727,-503.20852819,0.00029973,5]
[393922936,1763097035736,-501.57709844,0.00029973,5]
[393922937,1763097035745,-644.14709119,0.00029973,5]
[393922938,1763097035754,-500.55882154,0.00029973,5]
[393922939,1763097035764,-150.0,0.00029973,5]
[393922940,1763097035773,-500.0,0.00029973,5]
[393922941,1763097035782,-218.18295655,0.00029973,5]
[393922942,1763097035793,-504.17053572,0.00029973,5]
[393922943,1763097035802,-505.20733079,0.00029973,5]
[393922944,1763097035811,-504.04266578,0.00029973,5]
[393922945,1763097035820,-500.0,0.00029973,5]
[393922946,1763097035832,-461.088143,0.00029973,7]
[393922947,1763097035843,-151.0,0.00029973,7]
[393922948,1763097035853,-461.088143,0.00029973,7]
[393922949,1763097035864,-461.088143,0.00029973,7]
[393922950,1763097035873,-461.088143,0.00029973,7]
[393922951,1763097035882,-151.0,0.00029973,7]
[393922952,1763097035893,-151.0,0.00029973,7]
[393922953,1763097035902,-151.0,0.00029973,7]
[393922954,1763097035911,-6142.97085556,0.0002998,2]
[393922955,1763097035921,-6326.89285233,0.00029989,4]
[393922956,1763097035930,-178.321715,0.00029989,7]
[393922957,1763097035939,-500.0,0.00029989,2]
[393922958,1763097035949,-500.0,0.00029989,2]
[393922959,1763097035958,-1228.242409,0.00029989,7]
[393922960,1763097035967,-1228.242409,0.00029989,7]
[393922961,1763097035977,-151.0,0.00029989,7]
[393922962,1763097035987,-151.0,0.00029989,7]
[393922963,1763097035996,-19000.89742124,0.0002999,2]
[393922964,1763097036006,-151.0,0.0002999,7]
[393922965,1763097036015,-160.284731,0.0002999,7]
[393922966,1763097036025,-152.629931,0.0002999,7]
[393922967,1763097036034,-151.0,0.0002999,7]
[393922968,1763097036045,-151.0,0.0002999,7]
[393922969,1763097036055,-151.0,0.0002999,7]
[393922970,1763097036064,-151.0,0.0002999,7]
[393922971,1763097036074,-151.0,0.0002999,7]
[393922972,1763097036083,-12285.9417111,0.0002999,2]
[393922973,1763097036092,-202.62,0.00029999,2]
[393922974,1763097036102,-500.0,0.00029999,2]
[393922975,1763097036111,-500.0,0.00029999,2]
[393922976,1763097036200,-500.0,0.00029999,2]
[393922977,1763097036209,-500.0,0.00029999,2]
[393922978,1763097036219,-500.0,0.00029999,2]
[393922979,1763097036228,-427.68941082,0.00029999,2]
[393922980,1763097036237,-383.74143505,0.0003,30]
[393922981,1763097036245,-225.41,0.0003,14]
[393922982,1763097036255,-7139.88,0.0003,7]
[393922983,1763097036264,-85691.4251763,0.0003,30]
[393922984,1763097036273,-157.28301,0.0003,7]
[393922985,1763097036283,-151.0,0.0003,7]
[393922986,1763097036292,-357.196967,0.0003,2]
[393922987,1763097036302,-357.196967,0.0003,2]
[393922988,1763097036321,-357.196967,0.0003,2]
[393922989,1763097036331,-357.196967,0.0003,2]
[393922990,1763097036340,-461.088143,0.0003,7]
[393922991,1763097036349,-151.0,0.0003,7]
[393922992,1763097036358,-461.088143,0.0003,7]
[393922993,1763097036367,-461.088143,0.0003,7]
[393922994,1763097036377,-461.088143,0.0003,7]
[393922995,1763097036386,-151.0,0.0003,7]
[393922996,1763097036395,-151.0,0.0003,7]
[393922997,1763097036405,-1228.242409,0.0003,7]
[393922998,1763097036413,-1228.242409,0.0003,7]
[393922999,1763097036423,-151.0,0.0003,7]
[393923000,1763097036433,-151.0,0.0003,7]
[393923001,1763097036442,-250.766607,0.0003,7]
[393923002,1763097036451,-151.0,0.0003,7]
[393923003,1763097036461,-151.0,0.0003,7]
[393923004,1763097036470,-151.0,0.0003,7]
[393923005,1763097036479,-161.452324,0.0003,7]
[393923006,1763097036488,-151.0,0.0003,7]
[393923007,1763097036498,-178.055654,0.0003,7]
[393923008,1763097036507,-151.0,0.0003,7]
[393923009,1763097036516,-151.0,0.0003,7]
[393923010,1763097036527,-152.54609,0.00030081,20]
[393923011,1763097036537,-152.54609,0.000301,3]
[393923012,1763097036546,-471.21626521,0.0003013,2]
[393923013,1763097036556,-1641.91743512,0.0003022,6]
[393923014,1763097036565,-5888.0,0.00030247,2]
[393923015,1763097036579,-171.0,0.0003026,2]
[393923016,1763097036589,-587.0,0.0003026,2]
[393923017,1763097036600,-518.47688617,0.00030306,2]
[393923018,1763097036609,-350.0,0.0003042,5]
[393923019,1763097036619,-1500.0,0.0003042,5]
[393923020,1763097036628,-6142.97085556,0.00030424,2]
[393923021,1763097036638,-1584.35703412,0.00030436,2]
[393923022,1763097036647,-660.0,0.0003044,2]
[393923023,1763097036657,-250.0,0.00030521,5]
[393923024,1763097036666,-1000.0,0.00030521,5]
[393923025,1763097036676,-1000.0,0.00030521,5]
[393923026,1763097036685,-362.67971831,0.00030561,2]
[393923027,1763097036697,-393.5647388,0.0003079,30]
[393923028,1763097036708,-153.95800205,0.0003087,2]
[393923029,1763097036718,-1000.0,0.000309,7]
[393923030,1763097036728,-1690.81,0.000309,2]
[393923031,1763097036738,-151.0,0.000309,31]
[393923032,1763097036748,-151.0,0.000309,31]
[393923033,1763097036758,-151.0,0.000309,31]
[393923034,1763097036768,-151.0,0.000309,31]
[393923035,1763097036777,-152.54609,0.000309,2]
[393923036,1763097036787,-450.0,0.00030967,5]
[393923037,1763097036796,-2000.0,0.00030967,5]
[393923038,1763097036806,-760.0,0.00030988,2]
[393923039,1763097036815,-873.0,0.00031025,2]
[393923040,1763097036825,-350.0,0.00031068,5]
[393923041,1763097036839,-901.25371649,0.00031068,5]
[393923042,1763097036848,-1500.0,0.00031068,5]
[393923043,1763097036858,-987.517,0.00031088,2]
[393923044,1763097036868,-2161.0,0.00031088,2]
[393923045,1763097036879,-629.0,0.00031088,2]
[393923046,1763097036889,-418.181,0.00031097,2]
[393923047,1763097036898,-362.67971831,0.0003118,2]
[393923048,1763097036908,-231.0,0.00031252,2]
[393923049,1763097036918,-150.0,0.00031383,5]
[393923050,1763097036927,-300.0,0.00031383,5]
[393923051,1763097036938,-152.54609,0.00031462,20]
[393923052,1763097036947,-550.0,0.00031515,5]
[393923053,1763097036957,-2500.0,0.00031515,5]
[393923054,1763097036967,-660.57808853,0.00031536,2]
[393923055,1763097036978,-193.27,0.00031567,2]
[393923056,1763097036988,-262.26,0.00031567,2]
[393923057,1763097036998,-155.167,0.00031567,2]
[393923058,1763097037008,-450.0,0.00031616,5]
[393923059,1763097037017,-2000.0,0.00031616,5]
[393923060,1763097037027,-873.0,0.00031631,7]
[393923061,1763097037036,-152.54609,0.00031697,3]
[393923062,1763097037045,-362.67971831,0.00031799,2]
[393923063,1763097037055,-873.0,0.00031842,2]
[393923064,1763097037065,-1000.0,0.000319,7]
[393923065,1763097037075,-6142.97085556,0.00031919,2]
[393923066,1763097037084,-22204.9454279,0.00031929,2]
[393923067,1763097037093,-250.0,0.00031931,5]
[393923068,1763097037103,-301.4290475,0.00031931,5]
[393923069,1763097037113,-873.0,0.00031967,7]
[393923070,1763097037123,-504.68009058,0.00031973,5]
[393923071,1763097037132,-502.19725887,0.00031973,5]
[393923072,1763097037146,-502.43320757,0.00031973,5]
[393923073,1763097037156,-150.74,0.00031976,2]
[393923074,1763097037165,-759.59719238,0.00032063,5]
[393923075,1763097037174,-2506.06687289,0.00032063,5]
[393923076,1763097037183,-540.1463635,0.00032164,5]
[393923077,1763097037193,-2500.0,0.00032164,5]
[393923078,1763097037203,-362.67971831,0.00032418,2]
[393923079,1763097037213,-243.583068,0.00032479,5]
[393923080,1763097037222,-873.0,0.00032533,7]
[393923081,1763097037232,-1228.242409,0.00032534,31]
[393923082,1763097037242,-1228.242409,0.00032534,31]
[393923083,1763097037252,-151.0,0.00032534,31]
[393923084,1763097037261,-151.0,0.00032534,7]
[393923085,1763097037272,-151.0,0.00032534,31]
[393923086,1763097037282,-151.0,0.00032534,31]
[393923087,1763097037293,-151.0,0.00032534,31]
[393923088,1763097037302,-151.0,0.00032544,31]
[393923089,1763097037312,-357.196967,0.00032544,2]
[393923090,1763097037323,-357.196967,0.00032544,2]
[393923091,1763097037332,-357.196967,0.00032544,2]
[393923092,1763097037342,-357.196967,0.00032544,2]
[393923093,1763097037351,-461.088143,0.00032544,31]
[393923094,1763097037361,-151.0,0.00032544,31]
[393923095,1763097037370,-461.088143,0.00032544,31]
[393923096,1763097037379,-461.088143,0.00032544,31]
[393923097,1763097037388,-461.088143,0.00032544,31]
[393923098,1763097037397,-151.0,0.00032544,31]
[393923099,1763097037407,-151.0,0.00032544,15]
[393923100,1763097037416,-151.0,0.00032544,31]
[393923101,1763097037426,-173.189887,0.00032544,31]
[393923102,1763097037436,-202.27915517,0.00032544,31]
[393923103,1763097037446,-15055.6962808,0.00032544,2]
[393923104,1763097037455,-3000.0,0.00032712,5]
[393923105,1763097037465,-873.0,0.00032719,2]
[393923106,1763097037474,-823.0,0.00032754,2]
[393923107,1763097037484,-6142.97085556,0.0003279,2]
[393923108,1763097037495,-7139.88,0.000328,7]
[393923109,1763097037504,-152.54609,0.000328,2]
[393923110,1763097037515,-152.54609,0.00032843,20]
[393923111,1763097037528,-873.0,0.00032847,2]
[393923113,1763097037539,-151.0,0.00032877,31]
[393923114,1763097037549,-151.0,0.00032877,31]
[393923115,1763097037559,-151.0,0.00032877,31]
[393923116,1763097037569,-151.0,0.00032877,31]
[393923117,1763097037580,-151.0,0.00032877,31]
[393923118,1763097037590,-151.0,0.00032877,31]
[393923119,1763097037600,-151.0,0.00032877,31]
[393923120,1763097037610,-151.0,0.00032877,31]
[393923121,1763097037621,-151.0,0.00032877,31]
[393923122,1763097037634,-151.0,0.00032877,31]
[393923123,1763097037644,-151.0,0.00032877,30]
[393923124,1763097037653,-151.0,0.00032877,30]
[393923125,1763097037662,-151.0,0.00032877,30]
[393923126,1763097037672,-151.0,0.00032877,30]
[393923127,1763097037682,-151.0,0.00032877,30]
[393923128,1763097037691,-151.0,0.00032877,30]
[393923129,1763097037700,-237.041548,0.00032877,30]
[393923130,1763097037710,-907.67768212,0.00032881,120]
[393923131,1763097037719,-1000.0,0.000329,7]
[393923132,1763097037728,-10000.0,0.000329,2]
[393923133,1763097037738,-10051.49863839,0.0003295,2]
[393923134,1763097037747,-12285.9417111,0.0003299,2]
[393923135,1763097037757,-5853.12643187,0.00033,10]
[393923136,1763097037768,-72819.29749628,0.00033,2]
[393923137,1763097037778,-4990.06836235,0.00033,30]
[393923138,1763097037787,-1690.81,0.00033,14]
[393923139,1763097037797,-223.996853,0.00033,31]
[393923140,1763097037807,-151.0,0.00033,31]
[393923141,1763097037816,-151.0,0.00033,31]
[393923142,1763097037826,-151.0,0.00033,31]
[393923143,1763097037840,-151.0,0.00033,31]
[393923145,1763097037850,-151.0,0.00033,31]
[393923147,1763097037859,-151.0,0.00033,31]
[393923149,1763097037868,-357.196967,0.00033,2]
[393923151,1763097037878,-357.196967,0.00033,2]
[393923153,1763097037887,-357.196967,0.00033,2]
[393923155,1763097037897,-357.196967,0.00033,2]
[393923157,1763097037907,-151.0,0.00033,31]
[393923159,1763097037918,-293.881032,0.00033,31]
[393923161,1763097037927,-461.088143,0.00033,31]
[393923163,1763097037937,-213.586974,0.00033,31]
[393923165,1763097037946,-461.088143,0.00033,31]
[393923167,1763097037955,-461.088143,0.00033,31]
[393923169,1763097037965,-461.088143,0.00033,31]
[393923171,1763097037975,-251.700669,0.00033,15]
[393923173,1763097037984,-1228.242409,0.00033,31]
[393923175,1763097037993,-1228.242409,0.00033,31]
[393923177,1763097038002,-151.0,0.00033,31]
[393923179,1763097038011,-151.0,0.00033,7]
[393923181,1763097038021,-151.0,0.00033,31]
[393923183,1763097038030,-151.0,0.00033,31]
[393923185,1763097038040,-151.0,0.00033,31]
[393923187,1763097038049,-151.0,0.00033,30]
[393923189,1763097038059,-151.0,0.00033,30]
[393923191,1763097038068,-246.590146,0.00033,31]
[393923193,1763097038078,-363.04239803,0.00033037,2]
[393923195,1763097038088,-174.59733853,0.0003304,10]
[393923197,1763097038098,-225.41,0.000332,30]
[393923199,1763097038107,-175.54453151,0.000332,117]
[393923201,1763097038117,-258.0,0.00033252,120]
[393923203,1763097038126,-3500.0,0.0003326,5]
[393923205,1763097038135,-152.54609,0.00033295,3]
[393923207,1763097038144,-873.0,0.00033304,2]
[393923209,1763097038153,-999.70008997,0.00033342,2]
[393923211,1763097038162,-873.0,0.00033372,2]
[393923213,1763097038171,-153.95800205,0.0003347,110]
[393923215,1763097038180,-1416.73661773,0.00033699,2]
[393923217,1763097038189,-1521.13119915,0.00033808,5]
[393923219,1763097038200,-873.0,0.0003385,7]
[393923221,1763097038208,-875.0,0.00033855,2]
[393923223,1763097038218,-1000.0,0.000339,7]
[393923225,1763097038227,-873.0,0.00033986,2]
[393923227,1763097038237,-6142.97085556,0.00034052,2]
[393923229,1763097038246,-987.0,0.00034088,2]
[393923231,1763097038256,-2161.0,0.00034088,2]
[393923233,1763097038266,-629.0,0.00034088,2]
[393923235,1763097038275,-413.0,0.00034097,2]
[393923236,1763097038285,-152.54609,0.00034224,20]
[393923239,1763097038294,-164.926006,0.00034247,2]
[393923241,1763097038304,-873.0,0.00034272,2]
[393923242,1763097038314,-204.0,0.00034381,120]
[393923245,1763097038325,-7139.88,0.000344,14]
[393923246,1763097038335,-226.11,0.00034641,2]
[393923248,1763097038344,-152.54609,0.000347,2]
[393923251,1763097038354,-151.0,0.000348,11]
[393923252,1763097038363,-152.54609,0.00034892,3]
[393923254,1763097038373,-225.41,0.000349,30]
[393923257,1763097038382,-1000.0,0.000349,7]
[393923258,1763097038391,-179.0,0.00035,120]
[393923260,1763097038399,-260.7792336,0.00035,13]
[393923262,1763097038407,-22204.9454279,0.00035249,2]
[393923264,1763097038416,-285.0,0.00035252,120]
[393923266,1763097038425,-1152.0,0.00035453,2]
[393923267,1763097038433,-302.0,0.00035587,2]
[393923269,1763097038442,-6142.97085556,0.00035604,3]
[393923271,1763097038452,-302.74518,0.00035609,2]
[393923273,1763097038461,-5000.0,0.00035614,2]
[393923283,1763097038552,-500.0,0.00035616,2]
[393923285,1763097038562,-500.0,0.00035616,2]
[393923287,1763097038572,-500.0,0.00035616,2]
[393923289,1763097038584,-500.0,0.00035616,2]
[393923291,1763097038594,-500.0,0.00035616,2]
[393923293,1763097038603,-500.0,0.00035616,2]
[393923295,1763097038613,-500.0,0.00035616,2]
[393923297,1763097038623,-500.0,0.00035616,2]
[393923299,1763097038632,-500.0,0.00035616,2]
[393923301,1763097038642,-500.0,0.00035616,2]
[393923303,1763097038651,-500.0,0.00035616,2]
[393923305,1763097038661,-500.0,0.00035616,2]
[393923307,1763097038670,-500.0,0.00035616,2]
[393923309,1763097038680,-370.19350428,0.00035616,2]
[393923311,1763097038691,-1000.0,0.00035616,2]
[393923313,1763097038701,-1003.34967798,0.00035616,2]
[393923315,1763097038712,-1000.0,0.00035616,2]
[393923318,1763097038723,-1000.0,0.00035616,2]
[393923319,1763097038732,-1000.0,0.00035616,2]
[393923322,1763097038743,-1000.0,0.00035616,2]
[393923323,1763097038753,-1000.0,0.00035616,2]
[393923325,1763097038763,-1000.0,0.00035616,2]
[393923327,1763097038773,-1000.0,0.00035616,2]
[393923330,1763097038784,-1000.0,0.00035616,2]
[393923332,1763097038794,-1000.0,0.00035616,2]
[393923334,1763097038804,-1003.07484532,0.00035616,2]
[393923335,1763097038815,-353.91709453,0.00035616,5]
[393923337,1763097038829,-151.0,0.00035616,31]
[393923340,1763097038845,-151.0,0.00035616,31]
[393923342,1763097038855,-151.0,0.00035616,31]
[393923344,1763097038864,-151.0,0.00035616,31]
[393923346,1763097038874,-151.0,0.00035616,31]
[393923348,1763097038886,-151.0,0.00035616,31]
[393923350,1763097038895,-151.0,0.00035616,31]
[393923352,1763097038905,-151.0,0.00035616,31]
[393923354,1763097038916,-151.0,0.00035616,31]
[393923356,1763097038927,-151.0,0.00035616,31]
[393923358,1763097038936,-151.0,0.00035616,31]
[393923360,1763097038946,-151.0,0.00035616,31]
[393923362,1763097038955,-151.0,0.00035616,31]
[393923364,1763097038964,-151.0,0.00035616,31]
[393923366,1763097038973,-151.0,0.00035616,31]
[393923368,1763097038982,-151.0,0.00035616,31]
[393923369,1763097038991,-151.0,0.00035616,31]
[393923372,1763097039001,-151.0,0.00035616,31]
[393923374,1763097039011,-151.0,0.00035616,31]
[393923375,1763097039021,-151.0,0.00035616,31]
[393923377,1763097039030,-189.511415,0.00035616,31]
[393923379,1763097039040,-304.83037,0.0003563,2]
[393923382,1763097039050,-302.57664,0.0003566,2]
[393923384,1763097039060,-1690.81,0.000357,14]
[393923386,1763097039069,-1228.242409,0.000357,31]
[393923388,1763097039080,-1228.242409,0.000357,31]
[393923390,1763097039089,-1228.242401,0.000357,31]
[393923392,1763097039099,-151.0,0.000357,31]
[393923394,1763097039109,-151.0,0.000357,7]
[393923396,1763097039119,-151.0,0.000357,31]
[393923398,1763097039129,-151.0,0.000357,31]
[393923400,1763097039139,-257.251503,0.000357,31]
[393923402,1763097039149,-151.0,0.000357,30]
[393923404,1763097039159,-151.0,0.000357,30]
[393923406,1763097039169,-1000.0,0.000359,7]
[393923408,1763097039179,-418.40383622,0.00036,30]
[393923410,1763097039188,-204.0,0.000361,120]
[393923412,1763097039197,-151.0,0.000361,11]
[393923414,1763097039207,-265.65462437,0.0003624,2]
[393923416,1763097039217,-151.0,0.00036386,31]
[393923418,1763097039227,-461.088143,0.00036386,31]
[393923420,1763097039236,-461.088143,0.00036386,31]
[393923422,1763097039246,-461.088143,0.00036386,31]
[393923424,1763097039256,-461.088148,0.00036386,31]
[393923426,1763097039266,-6142.97085556,0.00036386,3]
[393923428,1763097039275,-274.040011,0.00036396,31]
[393923429,1763097039284,-357.196967,0.00036396,2]
[393923432,1763097039294,-357.196967,0.00036396,2]
[393923433,1763097039303,-357.196967,0.00036396,2]
[393923435,1763097039313,-357.196967,0.00036396,2]
[393923438,1763097039322,-151.0,0.00036396,31]
[393923440,1763097039334,-151.0,0.00036396,31]
[393923442,1763097039343,-15055.6962808,0.00036396,2]
[393923444,1763097039352,-7139.88,0.000364,14]
[393923445,1763097039361,-152.54609,0.0003649,3]
[393923448,1763097039371,-152.54609,0.000366,2]
[393923450,1763097039380,-225.41,0.000368,30]
[393923452,1763097039389,-150.51,0.00036851,60]
[393923453,1763097039398,-153.97,0.00036854,60]
[393923455,1763097039407,-150.25,0.00036854,60]
[393923457,1763097039416,-1000.0,0.000369,7]
[393923459,1763097039425,-150.51,0.00036951,60]
[393923461,1763097039435,-153.97,0.00036954,60]
[393923463,1763097039444,-150.25,0.00036954,60]
[393923465,1763097039453,-641.0,0.00037,2]
[393923467,1763097039462,-150.51,0.00037051,60]
[393923469,1763097039472,-153.97,0.00037054,60]
[393923471,1763097039481,-150.25,0.00037054,60]
[393923473,1763097039490,-987.0,0.00037088,2]
[393923475,1763097039499,-2161.0,0.00037088,2]
[393923477,1763097039509,-629.0,0.00037088,2]
[393923479,1763097039518,-413.0,0.00037097,2]